bitfinex/quotes_SOLUSD_20260226
["timestamp","ask_amount","ask_price","bid_price","bid_amount"]
[1772076304612,0.81504814,87.989,87.951,0.75822608]
[1772076306740,0.81504814,87.987,87.953,0.75610121]
[1772076307416,0.81504814,87.987,87.947,0.75506109]
[1772076307629,0.81504814,87.979,87.942,0.75506109]
[1772076308842,0.81504814,87.977,87.944,0.75403227]
[1772076311237,0.81504814,87.975,87.944,0.75403227]
[1772076311442,0.81504814,87.975,87.951,0.75104077]
[1772076311623,0.81504814,87.981,87.951,0.75104077]
[1772076313340,0.81504814,87.981,87.96,3.57891888]
[1772076313529,0.81504814,87.981,87.961,0.7490896]
[1772076314643,0.81504814,87.981,87.952,11.36983809]
[1772076314941,0.81504814,87.981,87.953,0.74812535]
[1772076315933,0.81504814,87.981,87.961,0.74717777]
[1772076316138,104.1,88.005,87.954,11.36957955]
[1772076316139,0.81504814,87.998,87.97,3.57891888]
[1772076316442,0.81504814,87.998,87.98,3.57891888]
[1772076316641,0.81504814,87.998,87.981,0.74623606]
[1772076316964,0.81504814,88.019,87.981,0.74623606]
[1772076318026,0.81504814,88.017,87.99,3.57891888]
[1772076320032,0.81504814,88.009,87.961,11.36867475]
[1772076320234,0.81504814,88.009,87.961,12.11215314]
[1772076320443,0.81504814,88.009,87.97,3.57891888]
[1772076322837,0.81504814,88.007,87.971,0.74080764]
[1772076323043,0.81504814,88.007,87.981,0.74080764]
[1772076329742,0.86343325,88.012,87.981,0.74080764]
[1772076330263,0.86343325,88.012,87.98,3.57891888]
[1772076330264,0.86343325,88.028,87.98,3.57891888]
[1772076330432,0.86343325,88.019,87.98,3.57891888]
[1772076330636,0.86343325,88.019,87.98,4.31223422]
[1772076330861,0.86343325,88.019,87.981,0.73331534]
[1772076331454,39.75962466,88.029,87.991,0.73253384]
[1772076331455,0.86343325,88.028,87.991,0.73253384]
[1772076334558,0.81469375,88.026,87.991,0.73253384]
[1772076334861,0.81469375,88.034,88.001,0.72951388]
[1772076338545,0.81469375,88.034,88.0,3.57891888]
[1772076338546,12.17407034,88.033,88.003,0.72662597]
[1772076338846,12.17335365,88.039,88.011,0.72662597]
[1772076339145,0.81469375,88.038,88.011,0.72662597]
[1772076340761,0.81469375,88.036,88.001,0.72523822]
[1772076343358,0.81469375,88.036,88.0,14.94255524]
[1772076343359,0.81469375,88.034,88.003,0.72389494]
[1772076343553,0.81469375,88.034,87.991,0.72322049]
[1772076343872,0.81469375,88.029,87.99,3.57891888]
[1772076344262,0.81469375,88.029,87.991,0.72322049]
[1772076344467,0.81469375,88.029,87.992,0.72255755]
[1772076345466,0.81469375,88.027,87.992,0.72255755]
[1772076346354,0.81469375,88.027,87.985,11.36549455]
[1772076346862,0.81469375,88.019,87.981,0.72190149]
[1772076347247,0.81469375,88.019,87.982,12.08722382]
[1772076347447,0.81469375,88.017,87.984,12.08632388]
[1772076347648,0.81469375,88.017,87.985,0.72062103]
[1772076349166,0.81469375,88.017,87.985,0.71998074]
[1772076350564,0.81469375,88.017,87.979,0.71872349]
[1772076350748,0.81469375,88.015,87.972,0.71872349]
[1772076352675,0.81469375,88.013,87.981,0.7175252]
[1772076353181,0.81469375,88.013,87.975,0.7175252]
[1772076353871,0.81469375,88.009,87.975,0.7175252]
[1772076354458,11.36260339,88.008,87.975,0.7175252]
[1772076354781,0.81469375,88.007,87.975,0.7175252]
[1772076354964,0.81469375,88.007,87.977,0.71634194]
[1772076355161,0.81469375,88.007,87.976,11.36673638]
[1772076355162,0.81469375,88.007,87.981,0.71634194]
[1772076356263,11.36260339,88.008,87.981,0.71634194]
[1772076356467,11.36188695,88.014,87.991,0.71319563]
[1772076356670,0.83313509,88.015,87.984,0.71319563]
[1772076359881,0.83313509,88.021,87.991,0.71015226]
[1772076360461,0.83313509,88.021,87.985,0.71015226]
[1772076361069,0.83313509,88.021,87.99,3.57891888]
[1772076361364,0.83313509,88.021,87.99,4.28302973]
[1772076362180,0.83313509,88.019,87.99,4.28302973]
[1772076362387,0.83313509,88.025,87.991,0.70723283]
[1772076362586,0.83313509,88.037,88.011,0.70723283]
[1772076362805,0.2,88.05,88.031,0.70723283]
[1772076363783,0.2,88.05,88.04,3.57385929]
[1772076366695,0.2,88.05,88.041,0.70345489]
[1772076366988,0.2,88.05,88.04,3.57385929]
[1772076369478,0.2,88.05,88.04,4.27460385]
[1772076369673,0.83313509,88.06,88.04,4.27460385]
[1772076369674,0.2,88.07,88.042,0.50074456]
[1772076369874,0.83313509,88.068,88.031,0.50074456]
[1772076371483,0.83313509,88.068,88.04,3.57385929]
[1772076371685,0.83313509,88.066,88.04,3.57385929]
[1772076373195,0.83313509,88.064,88.04,3.57385929]
[1772076375609,0.83313509,88.049,88.001,0.49648411]
[1772076376410,0.83313509,88.049,88.01,3.57385929]
[1772076376599,0.83313509,88.049,88.02,3.57385929]
[1772076377082,0.83313509,88.049,88.021,0.49580239]
[1772076377281,0.83313509,88.049,88.03,3.57385929]
[1772076377604,0.83313509,88.047,88.01,3.57385929]
[1772076379606,0.83313509,88.029,87.99,3.57385929]
[1772076379906,0.83313509,88.029,87.99,4.06765063]
[1772076381085,0.83313509,88.029,87.991,0.49314341]
[1772076382502,0.83313509,88.027,87.99,3.57385929]
[1772076382905,0.83313509,88.027,87.98,3.57385929]
[1772076383087,0.83313509,88.027,87.979,0.49186323]
[1772076383088,0.83313509,88.019,87.979,0.49186323]
[1772076383702,0.83313509,88.019,87.981,0.49124427]
[1772076384784,0.83313509,88.017,87.99,3.57385929]
[1772076385284,0.83313509,88.017,87.982,11.85658121]
[1772076385481,0.83313509,88.017,87.983,0.49000037]
[1772076385701,0.83313509,88.017,87.98,3.57385929]
[1772076386208,0.85558145,88.009,87.965,0.48938953]
[1772076386506,0.85558145,87.999,87.961,0.48938953]
[1772076386894,0.85558145,87.997,87.961,0.48938953]
[1772076387295,0.85558145,87.989,87.961,0.48938953]
[1772076387910,0.85558145,87.989,87.956,11.36923499]
[1772076388290,0.85558145,87.989,87.937,28.42922344]
[1772076388291,0.85558145,87.979,87.932,0.48819873]
[1772076388906,0.85558145,87.977,87.941,0.48761477]
[1772076389395,0.85558145,87.969,87.94,11.3713601]
[1772076389592,0.85558145,87.969,87.935,0.4870486]
[1772076389914,0.85558145,87.959,87.921,0.4870486]
[1772076391390,0.85558145,87.957,87.922,11.8596274]
[1772076392490,0.85558145,87.957,87.93,4.0586609]
[1772076392691,0.79755425,87.969,87.941,0.48480161]
[1772076392886,45.44976062,88.01,87.941,0.48480161]
[1772076392887,0.79755425,87.989,87.941,0.48480161]
[1772076393108,14.93878712,87.99,87.941,0.48480161]
[1772076393109,0.79755425,87.979,87.941,0.48480161]
[1772076393510,0.79755425,87.977,87.941,0.48480161]
[1772076393722,0.79755425,87.977,87.943,0.48425507]
[1772076395602,0.79755425,87.977,87.944,11.37087237]
[1772076395910,0.79755425,87.977,87.951,0.48317689]
[1772076397591,0.79755425,87.969,87.935,0.48212518]
[1772076397910,0.79755425,87.969,87.941,0.48212518]
[1772076399111,0.79755425,87.983,87.951,0.48160981]
[1772076399609,0.79755425,87.983,87.941,0.48109494]
[1772076400615,0.79755425,87.981,87.95,3.57385929]
[1772076400914,0.79755425,87.981,87.951,0.48060206]
[1772076401500,0.79755425,87.981,87.943,0.48010401]
[1772076402304,0.79755425,87.981,87.951,0.48010401]
[1772076404601,0.79755425,87.979,87.941,0.47863269]
[1772076407518,0.79755425,87.977,87.941,0.47863269]
[1772076407818,0.79755425,87.977,87.943,0.47723171]
[1772076410018,0.79755425,87.975,87.945,0.47632133]
[1772076411327,0.79755425,87.973,87.941,11.37126027]
[1772076411702,0.79755425,87.973,87.941,11.84668673]
[1772076411927,0.79755425,87.973,87.942,0.47542646]
[1772076415315,0.79755425,87.971,87.942,0.47542646]
[1772076417537,0.82787364,87.969,87.943,11.37100167]
[1772076418812,0.82787364,87.969,87.943,11.84303067]
[1772076420418,0.82787364,87.969,87.944,0.47122784]
[1772076421415,0.82787364,87.959,87.922,0.47122784]
[1772076421816,0.82787364,87.959,87.923,0.4708384]
[1772076422021,0.82787364,87.959,87.931,0.4708384]
[1772076424036,0.82787364,87.959,87.93,3.57786198]
[1772076424037,0.82787364,87.959,87.933,0.47006722]
[1772076424234,0.82787364,87.967,87.94,4.0479292]
[1772076425246,0.82787364,87.967,87.942,0.46969774]
[1772076425826,0.82787364,87.983,87.951,0.46931448]
[1772076426835,0.82787364,87.983,87.95,3.57786198]
[1772076426836,0.82787364,87.989,87.952,0.28432314]
[1772076427133,0.82787364,87.989,87.941,39.79941096]
[1772076427134,0.82787364,88.008,87.97,3.57786198]
[1772076427334,0.82787364,88.006,87.97,3.57786198]
[1772076429032,0.82787364,88.006,87.97,14.94536025]
[1772076429219,0.82787364,88.004,87.97,14.94536025]
[1772076429418,0.82787364,88.004,87.971,0.46784548]
[1772076431339,0.82787364,88.002,87.973,0.46748647]
[1772076431549,0.82787364,88.002,87.967,0.46712861]
[1772076431839,0.82787364,88.002,87.97,3.57786198]
[1772076432822,0.82787364,88.002,87.971,0.46676849]
[1772076433634,0.82787364,88.0,87.971,11.83408911]
[1772076433839,0.82787364,88.0,87.972,0.46641397]
[1772076435232,0.82787364,88.0,87.97,3.57786198]
[1772076436129,0.82787364,87.998,87.972,0.46573525]
[1772076437620,0.82787364,87.998,87.973,11.83219734]
[1772076437822,0.82787364,87.998,87.974,0.46507334]
[1772076444325,0.82787364,87.998,87.961,28.42162922]
[1772076444326,0.82787364,87.998,87.98,4.04102832]
[1772076444526,0.82787364,87.998,87.98,4.04072284]
[1772076446834,0.82787364,87.998,87.98,3.57786198]
[1772076448148,0.82787364,87.998,87.97,3.57786198]
[1772076448343,0.81881232,87.996,87.96,3.57786198]
[1772076448546,0.81881232,87.994,87.957,0.46166833]
[1772076448745,11.36428206,87.995,87.95,14.94795712]
[1772076448746,0.81881232,87.989,87.951,11.36996736]
[1772076448948,0.81881232,87.989,87.952,0.46138354]
[1772076449653,0.81881232,87.989,87.95,3.57786198]
[1772076451030,0.81881232,87.987,87.951,11.36996736]
[1772076451336,0.81881232,87.987,87.951,11.83078889]
[1772076452651,28.41070515,87.995,87.951,11.83078889]
[1772076452652,0.79461707,88.001,87.961,0.45998813]
[1772076452847,0.79461707,88.001,87.98,3.57786198]
[1772076454942,0.79461707,88.013,87.99,4.03730888]
[1772076455246,11.36189641,88.014,87.991,0.4594469]
[1772076455644,0.79461707,88.015,87.991,0.4594469]
[1772076458848,0.79461707,88.013,87.99,3.57786198]
[1772076460462,0.79461707,88.011,87.99,3.57786198]
[1772076463549,0.79461707,88.009,87.98,3.57786198]
[1772076467652,11.36260339,88.008,87.98,4.03409702]
[1772076467859,0.79461707,88.028,87.991,0.45623504]
[1772076468345,0.79461707,88.028,87.99,3.57786198]
[1772076468552,0.79461707,88.028,87.99,4.03386459]
[1772076469568,0.79461707,88.026,87.99,4.03386459]
[1772076469748,0.79461707,88.026,87.99,0.45600261]
[1772076470270,0.79461707,88.026,87.98,14.9440414]
[1772076470468,0.79461707,88.026,87.981,0.45577874]
[1772076471549,0.79461707,87.999,87.95,0.45533817]
[1772076471755,0.79461707,87.999,87.961,0.45533817]
[1772076471949,0.79461707,87.999,87.971,0.45533817]
[1772076473948,12.1584891,87.999,87.971,0.45533817]
[1772076474167,0.79461707,87.998,87.971,0.45533817]
[1772076477174,0.79461707,87.998,87.973,0.45226408]
[1772076477555,0.79461707,87.998,87.98,3.57786198]
[1772076478572,0.76739599,88.003,87.981,0.45067027]
[1772076478753,0.76739599,88.003,87.975,0.45067027]
[1772076479280,0.76739599,88.001,87.97,11.81812563]
[1772076480990,0.76739599,87.999,87.97,11.81812563]
[1772076481489,0.76739599,87.999,87.97,0.45067027]
[1772076481659,0.76739599,87.999,87.961,0.44834753]
[1772076482474,0.76739599,87.999,87.97,4.02339004]
[1772076482775,0.76739599,87.999,87.971,0.44759511]
[1772076483070,11.36363636,88.0,87.971,0.44759511]
[1772076483273,0.76739599,88.004,87.973,0.44759511]
[1772076484571,0.76739599,88.004,87.96,28.42201]
[1772076484572,3.57579493,88.0,87.967,11.36778598]
[1772076484758,0.76739599,87.999,87.967,11.36778598]
[1772076485279,0.76739599,87.997,87.968,0.44611683]
[1772076486865,0.76739599,87.997,87.971,0.44467325]
[1772076488880,0.76739599,87.997,87.971,11.36735142]
[1772076489072,0.76739599,87.997,87.972,0.44324722]
[1772076490481,0.76739599,87.997,87.967,0.44255052]
[1772076491476,0.76739599,87.997,87.96,31.99780493]
[1772076491477,0.76739599,87.997,87.968,11.36777009]
[1772076491694,0.76739599,88.016,87.99,3.57579493]
[1772076491859,0.76739599,88.016,87.98,3.57579493]
[1772076492056,0.76739599,88.016,87.98,4.01697181]
[1772076492655,0.76739599,88.009,87.97,3.57579493]
[1772076493356,0.76739599,88.009,87.968,11.36777009]
[1772076493563,0.76739599,87.997,87.962,0.43984051]
[1772076496776,0.76739599,87.997,87.97,4.01370021]
[1772076498885,0.76739599,87.997,87.97,0.43790528]
[1772076500986,11.36415291,87.996,87.961,11.36867475]
[1772076501174,0.76739599,87.995,87.961,11.36867475]
[1772076501578,0.76739599,87.995,87.962,0.43480843]
[1772076501986,0.76739599,87.995,87.971,0.43480843]
[1772076502990,0.76739599,88.005,87.983,0.43421275]
[1772076504395,0.76739599,88.005,87.977,11.36649454]
[1772076504972,0.76739599,88.005,87.97,3.57579493]
[1772076504973,0.76739599,88.004,87.971,11.36738243]
[1772076505174,0.76739599,88.004,87.971,11.80041546]
[1772076505382,0.76739599,88.004,87.972,0.43303303]
[1772076507090,0.76739599,88.004,87.974,0.4313116]
[1772076509985,0.76739599,88.004,87.976,0.42965542]
[1772076512988,0.76739599,88.004,87.977,11.36660718]
[1772076514301,0.76739599,88.004,87.972,11.79422864]
[1772076515581,0.74898089,88.002,87.973,0.42600239]
[1772076517489,0.74898089,88.002,87.974,11.36699479]
[1772076517801,0.74898089,88.002,87.975,0.42500654]
[1772076518888,0.74898089,88.002,87.98,3.57579493]
[1772076519095,0.74898089,88.002,87.981,0.42452003]
[1772076520592,0.74898089,88.013,87.981,0.42356219]
[1772076524305,0.74898089,88.013,87.96,3.57579493]
[1772076524306,0.74898089,88.009,87.977,11.36649211]
[1772076524519,0.74898089,88.009,87.978,0.42216271]
[1772076525090,0.74898089,88.009,87.981,0.42171061]
[1772076528908,0.74898089,88.009,87.983,0.41995825]
[1772076529716,0.74898089,88.007,87.971,0.41953712]
[1772076530092,0.74898089,88.005,87.973,0.41953712]
[1772076533814,0.74898089,88.005,87.975,0.41785753]
[1772076536314,0.76981864,88.036,87.999,0.41442574]
[1772076536494,0.76981864,88.036,88.001,0.41293524]
[1772076536695,0.76981864,88.036,87.99,3.57579493]
[1772076537112,0.76981864,88.036,88.0,3.57579493]
[1772076538524,0.82383471,88.034,88.001,11.36350723]
[1772076539412,0.82383471,88.034,88.01,3.57579493]
[1772076540599,0.82383471,88.034,88.009,11.36234861]
[1772076542515,0.82383471,88.034,88.004,11.3630632]
[1772076543900,0.82383471,88.034,88.01,3.57243572]
[1772076545920,28.39351637,88.049,88.011,11.36221608]
[1772076545921,0.82383471,88.048,88.011,11.36221608]
[1772076546127,0.82383471,88.048,88.02,3.57243572]
[1772076550437,0.82383471,88.048,88.008,28.40642134]
[1772076550438,0.82383471,88.046,88.018,11.36125908]
[1772076552532,0.82383471,88.046,88.013,11.36192291]
[1772076555617,0.82383471,88.044,88.02,3.57243572]
[1772076555923,0.82383471,88.044,88.01,3.57243572]
[1772076557534,0.82383471,88.042,88.01,14.93473559]
[1772076560020,0.82383471,88.047,88.02,3.57243572]
[1772076561527,0.82383471,88.045,88.02,3.57243572]
[1772076563742,0.82383471,88.045,88.021,11.36092523]
[1772076563922,0.82383471,88.045,88.03,3.57243572]
[1772076564734,0.82383471,88.048,88.03,3.57243572]
[1772076566247,28.38844476,88.064,88.03,3.57243572]
[1772076566248,11.35654317,88.055,88.03,3.57243572]
[1772076566459,0.82383471,88.06,88.031,11.35963467]
[1772076568151,0.82383471,88.06,88.04,3.57243572]
[1772076570348,0.2,88.07,88.05,3.57243572]
[1772076570650,0.82383471,88.069,88.05,3.57243572]
[1772076571237,0.2,88.07,88.05,3.57243572]
[1772076572854,0.82383471,88.068,88.03,3.57243572]
[1772076574740,3.77243572,88.07,88.02,3.57243572]
[1772076574741,0.82383471,88.066,88.02,3.57243572]
[1772076575046,0.82383471,88.066,88.03,3.57243572]
[1772076577263,0.82383471,88.064,88.03,3.57243572]
[1772076577464,0.82383471,88.064,88.031,11.35963467]
[1772076577949,0.82383471,88.064,88.04,3.57243572]
[1772076582668,11.35550685,88.063,88.03,3.57243572]
[1772076582865,0.82383471,88.062,88.03,3.57243572]
[1772076586268,0.82383471,88.062,88.02,39.76369006]
[1772076586269,0.82383471,88.06,88.04,3.57243572]
[1772076588078,0.82383471,88.059,88.003,11.36324898]
[1772076588257,11.35615162,88.058,88.01,3.57243572]
[1772076588451,0.82383471,88.057,88.01,3.57243572]
[1772076588746,0.82383471,88.039,88.0,3.57243572]
[1772076591473,0.82383471,88.037,88.0,3.57243572]
[1772076591776,0.82383471,88.029,87.98,3.57243572]
[1772076591956,0.82383471,88.019,87.98,3.57243572]
[1772076592156,0.82383471,88.019,87.99,3.57243572]
[1772076593471,0.82383471,88.017,87.99,3.57243572]
[1772076595178,0.82383471,88.015,87.99,3.57243572]
[1772076599560,0.82383471,88.013,87.98,3.57243572]
[1772076600776,0.82383471,88.009,87.97,3.57243572]
[1772076600983,0.82383471,88.009,87.96,3.57243572]
[1772076601364,0.82383471,88.009,87.97,3.57243572]
[1772076601566,3.57243572,88.01,87.97,3.57243572]
[1772076601567,0.82383471,88.007,87.97,14.93990406]
[1772076602779,0.82383471,88.007,87.98,3.57243572]
[1772076602962,0.82383471,88.013,87.99,3.57243572]
[1772076603382,0.82383471,88.013,87.98,3.57432868]
[1772076604463,0.82383471,88.011,87.98,3.57432868]
[1772076604659,0.82383471,88.011,87.99,3.57432868]
[1772076604873,0.82383471,88.011,87.98,3.57432868]
[1772076606979,0.82383471,88.011,87.981,11.3660904]
[1772076607186,0.82383471,88.009,87.98,3.57432868]
[1772076608278,11.36173134,88.015,87.99,3.57432868]
[1772076608587,0.82383471,88.014,87.99,3.57432868]
[1772076609786,0.82383471,88.012,87.98,3.57432868]
[1772076610685,0.82383471,88.009,87.97,3.57432868]
[1772076612586,0.82383471,87.999,87.96,3.57432868]
[1772076612789,0.82383471,87.989,87.929,11.37281215]
[1772076612978,0.82383471,87.979,87.94,3.57432868]
[1772076613283,0.82383471,87.979,87.95,3.57432868]
[1772076616178,11.36592494,87.983,87.951,11.36996736]
[1772076616696,0.82383471,87.982,87.95,3.57432868]
[1772076617894,3.57432868,87.96,87.92,3.57432868]
[1772076618074,11.3690625,87.958,87.92,3.57432868]
[1772076618274,0.82383471,87.957,87.92,3.57432868]
[1772076619003,11.36847383,87.963,87.94,3.57432868]
[1772076619177,45.4444741,88.02,87.921,11.37384697]
[1772076619178,0.82383471,87.969,87.95,3.57432868]
[1772076619376,0.82383471,87.968,87.95,3.57432868]
[1772076619793,0.82383471,87.968,87.94,3.57432868]
[1772076620493,11.36789932,87.967,87.94,3.57432868]
[1772076620697,0.82383471,87.966,87.94,3.57432868]
[1772076625073,11.36815779,87.965,87.94,3.57432868]
[1772076625278,0.82383471,87.964,87.94,3.57432868]
[1772076625893,0.82383471,87.985,87.95,3.57432868]
[1772076626199,28.41388961,87.986,87.95,3.57432868]
[1772076626200,0.82383471,87.98,87.95,3.57432868]
[1772076630483,0.82383471,87.978,87.95,3.57432868]
[1772076631405,0.82383471,87.978,87.94,3.57432868]
[1772076632403,0.82383471,87.969,87.93,3.57432868]
[1772076632702,0.82383471,87.959,87.921,62.2]
[1772076632888,0.82383471,87.959,87.92,3.57432868]
[1772076633401,0.82383471,87.959,87.921,11.37384697]
[1772076633980,0.82383471,87.959,87.93,3.57432868]
[1772076634193,0.82383471,87.959,87.94,3.57432868]
[1772076634395,0.82383471,87.959,87.93,3.57432868]
[1772076634993,0.82383471,87.957,87.93,3.57432868]
[1772076637508,28.42006439,87.967,87.93,3.57432868]
[1772076637509,0.82383471,87.955,87.93,3.57432868]
[1772076638004,0.82383471,87.955,87.921,11.37384697]
[1772076640994,11.36957955,87.954,87.921,11.37384697]
[1772076641299,0.82383471,87.953,87.921,11.37384697]
[1772076641915,0.82383471,87.953,87.92,3.57432868]
[1772076642413,0.82383471,87.939,87.9,3.57432868]
[1772076643315,0.82383471,87.937,87.901,11.37643485]
[1772076645516,0.82383471,87.935,87.901,11.37643485]
[1772076646314,0.82383471,87.935,87.9,3.57432868]
[1772076646909,0.82383471,87.935,87.901,11.37643485]
[1772076647106,0.82383471,87.935,87.91,3.57432868]
[1772076647612,0.82383471,87.933,87.91,3.57432868]
[1772076651020,0.82383471,87.931,87.91,3.57432868]
[1772076652996,0.82383471,87.938,87.92,3.57432868]
[1772076653511,11.37177752,87.937,87.92,3.57432868]
[1772076653720,0.82383471,87.936,87.92,3.57432868]
[1772076654296,28.42367316,87.955,87.921,0.69196088]
[1772076654492,11.36893325,87.959,87.931,0.69170866]
[1772076655120,28.41988783,87.967,87.931,0.69170866]
[1772076655913,28.41988783,87.967,87.941,0.69012876]
[1772076656313,0.75221662,87.966,87.94,3.57432868]
[1772076657627,0.75221662,87.964,87.94,3.57432868]
[1772076659426,0.75221662,87.964,87.94,15.63352564]
[1772076660224,0.75221662,87.964,87.941,0.68710493]
[1772076660820,0.75221662,87.962,87.94,3.57432868]
[1772076663332,0.75221662,87.96,87.94,3.57845102]
[1772076663506,0.75221662,87.96,87.94,4.26339446]
[1772076664711,0.75221662,87.988,87.951,0.6835377]
[1772076665024,0.75221662,87.987,87.951,0.6835377]
[1772076665415,0.75221662,87.987,87.92,3.57845102]
[1772076665416,0.75221662,87.985,87.961,0.6835377]
[1772076665928,0.75221662,87.993,87.971,0.6828389]
[1772076666227,12.11634727,87.997,87.971,0.6828389]
[1772076666827,0.75221662,87.996,87.971,0.6828389]
[1772076668135,0.75221662,87.994,87.971,0.6828389]
[1772076668426,0.75221662,88.001,87.98,3.57845102]
[1772076668633,3.57845102,88.02,87.981,0.68079435]
[1772076668634,11.36247429,88.009,87.981,0.68079435]
[1772076669228,11.36247429,88.009,87.97,3.57845102]
[1772076669229,0.75221662,88.008,87.97,3.57845102]
[1772076669536,45.43952636,88.03,87.93,5.36086188]
[1772076669537,0.75221662,88.039,88.0,3.57845102]
[1772076669719,0.75221662,88.033,88.0,3.57845102]
[1772076670037,0.75221662,88.033,87.99,3.57845102]
[1772076670240,0.75221662,88.029,87.99,3.57845102]
[1772076671109,0.75221662,88.029,87.991,0.67946828]
[1772076671323,0.75221662,88.029,88.0,3.57845102]
[1772076671532,0.75221662,88.029,88.001,0.67946828]
[1772076672738,0.75221662,88.035,88.011,0.67817392]
[1772076674126,0.75221662,88.054,88.021,0.67753707]
[1772076674332,0.75221662,88.049,88.01,3.57845102]
[1772076674540,0.75221662,88.039,87.99,0.67690939]
[1772076674749,0.75221662,88.037,88.011,0.67690939]
[1772076674920,0.75221662,88.044,88.021,0.67690939]
[1772076675122,0.75221662,88.064,88.03,3.57845102]
[1772076675326,0.75221662,88.059,88.023,0.67690939]
[1772076675635,0.75221662,88.059,88.02,3.57845102]
[1772076675835,0.75221662,88.049,88.01,3.57845102]
[1772076676221,3.57845102,88.04,88.002,0.67628727]
[1772076676548,0.75221662,88.039,88.002,0.67628727]
[1772076677018,0.75221662,88.037,88.01,3.57845102]
[1772076678040,0.75221662,88.035,88.01,3.57845102]
[1772076678226,0.75221662,88.035,88.011,0.67507836]
[1772076678626,0.75221662,88.04,88.02,3.57845102]
[1772076679039,0.75221662,88.04,87.99,3.57845102]
[1772076679040,0.75221662,88.029,87.99,3.57845102]
[1772076679233,0.75221662,88.019,87.987,0.67447642]
[1772076679429,0.75221662,88.019,87.981,0.67447642]
[1772076679643,43.33310799,88.04,87.921,0.6738985]
[1772076679644,0.75221662,87.999,87.921,0.6738985]
[1772076679942,0.75221662,87.999,87.96,3.57845102]
[1772076680338,3.57845102,88.0,87.96,3.57845102]
[1772076680339,0.75221662,87.997,87.96,3.57845102]
[1772076680849,0.75221662,87.989,87.95,3.57845102]
[1772076681225,39.77363121,87.998,87.936,0.67332076]
[1772076681228,0.75221662,87.979,87.936,0.67332076]
[1772076681431,0.75221662,87.979,87.941,0.67332076]
[1772076682827,0.75221662,87.977,87.943,0.67219287]
[1772076685048,0.75221662,87.975,87.943,0.67219287]
[1772076685738,0.75221662,87.975,87.945,0.66999479]
[1772076688058,0.75221662,87.975,87.947,0.66893178]
[1772076688431,11.36616878,87.981,87.951,0.66893178]
[1772076688635,12.09880752,87.988,87.961,0.6684117]
[1772076689141,0.73350782,87.987,87.961,0.6684117]
[1772076690130,0.73350782,88.013,87.98,3.57845102]
[1772076690336,0.73350782,88.012,87.981,0.66790505]
[1772076691133,0.73350782,88.012,87.962,39.78990927]
[1772076691134,0.73350782,88.012,87.99,4.24585419]
[1772076691843,0.73350782,88.021,88.0,3.57845102]
[1772076692046,0.73350782,88.019,87.991,0.66690739]
[1772076692456,0.73350782,88.019,87.993,0.66690739]
[1772076694052,0.73350782,88.019,88.0,3.57845102]
[1772076694745,0.71495873,88.027,88.001,0.66494021]
[1772076694949,0.71495873,88.057,88.02,3.57845102]
[1772076695148,0.71495873,88.057,88.007,0.66494021]
[1772076695149,0.71495873,88.057,88.01,3.57845102]
[1772076695539,0.71495873,88.057,88.01,4.24291891]
[1772076696068,0.71495873,88.039,88.001,0.66446789]
[1772076696443,0.71495873,88.039,88.01,3.57845102]
[1772076696749,0.71495873,88.039,88.001,0.66446789]
[1772076697159,0.71495873,88.037,88.001,12.02797512]
[1772076697959,0.71495873,88.037,88.002,0.66352458]
[1772076698162,0.71495873,88.029,87.99,3.57845102]
[1772076698668,0.71495873,88.029,87.991,11.36479867]
[1772076699171,0.71495873,88.027,88.0,3.57845102]
[1772076699469,0.71495873,88.027,87.99,3.57845102]
[1772076699840,0.71495873,88.027,87.99,4.24105844]
[1772076700056,0.71495873,88.027,87.99,3.57845102]
[1772076700950,0.71495873,88.019,87.98,3.57845102]
[1772076701762,0.71495873,88.017,87.981,12.02779973]
[1772076702744,0.71495873,88.024,87.991,0.66127758]
[1772076702954,0.71495873,88.038,88.001,0.66127758]
[1772076703868,0.71495873,88.036,88.001,0.66127758]
[1772076706542,0.71495873,88.034,88.003,0.6595746]
[1772076706743,0.71495873,88.034,88.011,0.6595746]
[1772076709045,0.71495873,88.044,88.011,0.6595746]
[1772076709252,0.71495873,88.068,88.031,0.65874253]
[1772076709653,0.71495873,88.068,88.04,3.57845102]
[1772076709954,0.71495873,88.068,88.041,0.65833125]
[1772076711569,0.71495873,88.066,88.04,3.57845102]
[1772076711968,0.71495873,88.066,88.03,3.57845102]
[1772076712167,0.71495873,88.059,88.022,0.65752623]
[1772076712753,0.71495873,88.059,88.03,3.57845102]
[1772076712959,0.71495873,88.059,88.03,4.23559781]
[1772076713351,11.35615162,88.058,88.031,0.65714679]
[1772076713674,0.71495873,88.068,88.04,4.23559781]
[1772076713973,0.71495873,88.068,88.041,0.65676834]
[1772076715551,11.35499108,88.067,88.041,0.65638546]
[1772076716167,0.73431453,88.066,88.041,0.65638546]
[1772076719276,0.2,88.07,88.051,0.65011413]
[1772076719472,0.2,88.07,88.021,0.65011413]
[1772076719473,0.73431453,88.059,88.021,0.65011413]
[1772076719866,0.73431453,88.059,88.02,3.57845102]
[1772076719867,0.73431453,88.059,88.031,0.64890387]
[1772076720781,0.2,88.07,88.041,0.64771838]
[1772076720960,0.2,88.07,88.051,0.64771838]
[1772076721358,0.2,88.07,88.06,3.57845102]
[1772076721668,0.2,88.08,88.061,0.64653295]